fUST/lending_fUST_20250411
["ID","MTS","AMOUNT","RATE_DAILY","PERIOD"]
[357684427,1744332647142,-500.0,0.00016438,2]
[357684429,1744332647152,-519.3,0.00016438,2]
[357684431,1744332647161,-398.99793503,0.00016438,2]
[357684433,1744332647170,-1328.83,0.00016438,2]
[357684436,1744332647189,-920.39,0.00016438,2]
[357684439,1744332647210,-1101.36,0.00016438,2]
[357684442,1744332647232,-500.0,0.00016438,2]
[357684446,1744332647255,-500.0,0.00016438,2]
[357684449,1744332647277,-818.53,0.00016438,2]
[357684453,1744332647297,-504.5785559,0.00016438,2]
[357684456,1744332647317,-500.0,0.00016438,2]
[357684459,1744332647335,-500.0,0.00016438,2]
[357684462,1744332647352,-856.67,0.00016438,2]
[357684465,1744332647373,-743.65,0.00016438,2]
[357684468,1744332647397,-500.0,0.00016438,2]
[357684471,1744332647412,-1156.1,0.00016438,2]
[357684474,1744332647432,-500.0,0.00016438,2]
[357684477,1744332647450,-500.0,0.00016438,2]
[357684480,1744332647467,-500.0,0.00016438,2]
[357684483,1744332647486,-214.89890763,0.00016438,2]
[357684485,1744332647503,-678.36,0.00016438,2]
[357684488,1744332647519,-1705.48,0.00016438,2]
[357684491,1744332647536,-151.0,0.00016438,2]
[357684494,1744332647553,-151.0,0.00016438,2]
[357684497,1744332647570,-500.0,0.00016438,2]
[357684500,1744332647590,-152.84971,0.00016438,2]
[357684503,1744332647607,-716.68,0.00016438,2]
[357684505,1744332647624,-500.0,0.00016438,2]
[357684508,1744332647640,-500.0,0.00016438,2]
[357684511,1744332647660,-151.0,0.00016438,2]
[357684514,1744332647676,-151.0,0.00016438,2]
[357684517,1744332647694,-500.0,0.00016438,2]
[357684520,1744332647712,-500.0,0.00016438,2]
[357684522,1744332647728,-500.0,0.00016438,2]
[357684525,1744332647747,-151.0,0.00016438,2]
[357684528,1744332647764,-151.0,0.00016438,2]
[357684531,1744332647782,-151.0,0.00016438,2]
[357684534,1744332647799,-151.0,0.00016438,2]
[357684536,1744332647815,-151.0,0.00016438,2]
[357684539,1744332647832,-151.0,0.00016438,2]
[357684542,1744332647849,-151.0,0.00016438,2]
[357684545,1744332647865,-205.036188,0.00016438,2]
[357684548,1744332647883,-1296.89,0.00016438,2]
[357684551,1744332647899,-506.23596602,0.00016438,2]
[357684553,1744332647916,-151.0,0.00016438,2]
[357684556,1744332647932,-236.17156,0.00016438,2]
[357684559,1744332647949,-500.0,0.00016438,2]
[357684562,1744332647966,-790.9,0.00016438,2]
[357684565,1744332647984,-704.94,0.00016438,2]
[357684567,1744332648000,-567.7,0.00016438,2]
[357684570,1744332648017,-500.0,0.00016438,2]
[357684573,1744332648035,-500.0,0.00016438,2]
[357684576,1744332648051,-500.0,0.00016438,2]
[357684579,1744332648069,-1473.884832,0.00016438,2]
[357684582,1744332648085,-1473.884832,0.00016438,2]
[357684585,1744332648103,-1473.884832,0.00016438,2]
[357684587,1744332648120,-1473.884832,0.00016438,2]
[357684590,1744332648136,-1473.884832,0.00016438,2]
[357684593,1744332648153,-1473.884832,0.00016438,2]
[357684596,1744332648170,-1473.884832,0.00016438,2]
[357684599,1744332648187,-1473.884832,0.00016438,2]
[357684602,1744332648205,-1473.884832,0.00016438,2]
[357684605,1744332648223,-558.42,0.00016438,2]
[357684608,1744332648241,-1473.884832,0.00016438,2]
[357684610,1744332648257,-1473.884832,0.00016438,2]
[357684612,1744332648268,-500.0,0.00016438,2]
[357684614,1744332648277,-1473.884832,0.00016438,2]
[357684616,1744332648287,-1473.884832,0.00016438,2]
[357684618,1744332648297,-1473.884832,0.00016438,2]
[357684620,1744332648307,-1188.07,0.00016438,2]
[357684623,1744332648316,-1473.884832,0.00016438,2]
[357684625,1744332648326,-1473.884832,0.00016438,2]
[357684627,1744332648335,-1473.884832,0.00016438,2]
[357684654,1744332648345,-1473.884832,0.00016438,2]
[357684660,1744332648640,-500.0,0.00016438,2]
[357684662,1744332648656,-1473.884832,0.00016438,2]
[357684664,1744332648666,-714.62,0.00016438,2]
[357684666,1744332648676,-1473.884832,0.00016438,2]
[357684668,1744332648687,-3771.47,0.00016438,2]
[357684670,1744332648697,-570.24,0.00016438,2]
[357684672,1744332648708,-512.52032251,0.00016438,2]
[357684674,1744332648718,-500.0,0.00016438,2]
[357684676,1744332648728,-500.0,0.00016438,2]
[357684678,1744332648738,-500.0,0.00016438,2]
[357684680,1744332648748,-1402.01,0.00016438,2]
[357684682,1744332648758,-500.0,0.00016438,2]
[357684684,1744332648768,-500.0,0.00016438,2]
[357684686,1744332648778,-151.0,0.00016438,2]
[357684688,1744332648788,-500.0,0.00016438,2]
[357684690,1744332648798,-151.0,0.00016438,2]
[357684692,1744332648807,-151.0,0.00016438,2]
[357684694,1744332648817,-151.0,0.00016438,2]
[357684696,1744332648827,-500.0,0.00016438,2]
[357684698,1744332648837,-1107.44,0.00016438,2]
[357684700,1744332648846,-726.32,0.00016438,2]
[357684702,1744332648856,-500.0,0.00016438,2]
[357684704,1744332648866,-500.0,0.00016438,2]
[357684706,1744332648876,-1438.7,0.00016438,2]
[357684709,1744332648886,-500.0,0.00016438,2]
[357684711,1744332648896,-934.2,0.00016438,2]
[357684713,1744332648906,-870.5,0.00016438,2]
[357684714,1744332648916,-1864.53,0.00016438,2]
[357684717,1744332648926,-500.0,0.00016438,2]
[357684718,1744332648935,-537.53,0.00016438,2]
[357684720,1744332648945,-500.0,0.00016438,2]
[357684723,1744332648955,-500.0,0.00016438,2]
[357684725,1744332648966,-500.0,0.00016438,2]
[357684727,1744332648975,-998.15,0.00016438,2]
[357684729,1744332648985,-1383.56,0.00016438,2]
[357684731,1744332648996,-3529.69,0.00016438,2]
[357684733,1744332649006,-500.0,0.00016438,2]
[357684735,1744332649016,-500.0,0.00016438,2]
[357684737,1744332649025,-500.0,0.00016438,2]
[357684739,1744332649035,-500.0,0.00016438,2]
[357684741,1744332649045,-502.2206239,0.00016438,2]
[357684743,1744332649055,-500.0,0.00016438,2]
[357684745,1744332649064,-151.0,0.00016438,2]
[357684747,1744332649074,-151.0,0.00016438,2]
[357684749,1744332649084,-151.0,0.00016438,2]
[357684751,1744332649093,-500.0,0.00016438,2]
[357684753,1744332649103,-151.0,0.00016438,2]
[357684755,1744332649112,-3044.77,0.00016438,2]
[357684757,1744332649122,-500.0,0.00016438,2]
[357684759,1744332649131,-151.0,0.00016438,2]
[357684761,1744332649141,-500.0,0.00016438,2]
[357684763,1744332649150,-151.0,0.00016438,2]
[357684765,1744332649159,-2146.75,0.00016438,2]
[357684766,1744332649169,-151.0,0.00016438,2]
[357684769,1744332649179,-151.0,0.00016438,2]
[357684771,1744332649188,-500.0,0.00016438,2]
[357684773,1744332649197,-1512.13,0.00016438,2]
[357684775,1744332649207,-151.0,0.00016438,2]
[357684777,1744332649216,-14936.72,0.00016438,2]
[357684779,1744332649226,-500.0,0.00016438,2]
[357684781,1744332649235,-500.0,0.00016438,2]
[357684783,1744332649245,-500.0,0.00016438,2]
[357684785,1744332649255,-1335.19,0.00016438,2]
[357684787,1744332649264,-1204.17,0.00016438,2]
[357684789,1744332649274,-500.0,0.00016438,2]
[357684791,1744332649283,-500.0,0.00016438,2]
[357684793,1744332649293,-500.0,0.00016438,2]
[357684795,1744332649303,-2211.01,0.00016438,2]
[357684797,1744332649312,-1290.13,0.00016438,2]
[357684799,1744332649322,-500.0,0.00016438,2]
[357684801,1744332649332,-500.0,0.00016438,2]
[357684803,1744332649341,-500.0,0.00016438,2]
[357684805,1744332649350,-500.0,0.00016438,2]
[357684807,1744332649361,-782.17,0.00016438,2]
[357684809,1744332649371,-1521.17,0.00016438,2]
[357684811,1744332649381,-500.0,0.00016438,2]
[357684813,1744332649390,-518.21041034,0.00016438,2]
[357684815,1744332649400,-500.0,0.00016438,2]
[357684817,1744332649409,-500.0,0.00016438,2]
[357684819,1744332649419,-500.0,0.00016438,2]
[357684820,1744332649429,-500.0,0.00016438,2]
[357684822,1744332649438,-500.0,0.00016438,2]
[357684824,1744332649447,-500.0,0.00016438,2]
[357684826,1744332649456,-500.0,0.00016438,2]
[357684828,1744332649466,-500.0,0.00016438,2]
[357684830,1744332649476,-500.0,0.00016438,2]
[357684832,1744332649486,-500.0,0.00016438,2]
[357684834,1744332649496,-500.0,0.00016438,2]
[357684836,1744332649506,-500.0,0.00016438,2]
[357684838,1744332649515,-500.0,0.00016438,2]
[357684840,1744332649525,-500.0,0.00016438,2]
[357684842,1744332649535,-500.0,0.00016438,2]
[357684844,1744332649544,-500.0,0.00016438,2]
[357684846,1744332649554,-500.0,0.00016438,2]
[357684847,1744332649564,-500.0,0.00016438,2]
[357684848,1744332649575,-500.0,0.00016438,2]
[357684849,1744332649585,-500.0,0.00016438,2]
[357684850,1744332649595,-500.0,0.00016438,2]
[357684851,1744332649606,-3640.91,0.00016438,2]
[357684852,1744332649617,-500.0,0.00016438,2]
[357684853,1744332649627,-500.0,0.00016438,2]
[357684854,1744332649636,-500.0,0.00016438,2]
[357684855,1744332649647,-500.0,0.00016438,2]
[357684856,1744332649659,-500.0,0.00016438,2]
[357684857,1744332649669,-500.0,0.00016438,2]
[357684858,1744332649679,-500.0,0.00016438,2]
[357684859,1744332649689,-500.0,0.00016438,2]
[357684860,1744332649700,-448.91,0.00016438,2]
[357684861,1744332649710,-500.0,0.00016438,2]
[357684862,1744332649720,-708.03,0.00016438,2]
[357684863,1744332649730,-500.490838,0.00016438,2]
[357684864,1744332649741,-504.18805057,0.00016438,2]
[357684865,1744332649751,-500.0,0.00016438,2]
[357684866,1744332649762,-500.0,0.00016438,2]
[357684867,1744332649772,-500.0,0.00016438,2]
[357684868,1744332649782,-1000.0,0.00016438,2]
[357684869,1744332649791,-500.0,0.00016438,2]
[357684870,1744332649802,-1604.56,0.00016438,2]
[357684871,1744332649812,-500.0,0.00016438,2]
[357684872,1744332649822,-1186.97,0.00016438,2]
[357684873,1744332649832,-500.0,0.00016438,2]
[357684874,1744332649842,-500.0,0.00016438,2]
[357684875,1744332649852,-7810.81,0.00016438,2]
[357684876,1744332649861,-502.62240805,0.00016438,2]
[357684877,1744332649871,-500.0,0.00016438,2]
[357684878,1744332649881,-500.0,0.00016438,2]
[357684879,1744332649891,-500.0,0.00016438,2]
[357684880,1744332649900,-640.07,0.00016438,2]
[357684881,1744332649909,-500.0,0.00016438,2]
[357684882,1744332649919,-614.86,0.00016438,2]
[357684883,1744332649929,-500.0,0.00016438,2]
[357684884,1744332649938,-13554.02,0.00016438,2]
[357684885,1744332649948,-500.0,0.00016438,2]
[357684886,1744332649958,-769.63,0.00016438,2]
[357684887,1744332649967,-500.0,0.00016438,2]
[357684888,1744332649977,-500.0,0.00016438,2]
[357684889,1744332649986,-1000.0,0.00016438,2]
[357684890,1744332649997,-500.0,0.00016438,2]
[357684891,1744332650007,-500.0,0.00016438,2]
[357684892,1744332650016,-5806.94,0.00016438,2]
[357684893,1744332650026,-555.86,0.00016438,2]
[357684894,1744332650035,-500.0,0.00016438,2]
[357684895,1744332650045,-1492.5,0.00016438,2]
[357684896,1744332650055,-500.0,0.00016438,2]
[357684897,1744332650065,-726.32,0.00016438,2]
[357684898,1744332650074,-659.35,0.00016438,2]
[357684899,1744332650083,-506.89390154,0.00016438,2]
[357684900,1744332650093,-688.0,0.00016438,2]
[357684901,1744332650102,-629.51096057,0.00016438,2]
[357684902,1744332650112,-1067.15,0.00016438,2]
[357684903,1744332650122,-500.0,0.00016438,2]
[357684904,1744332650131,-500.0,0.00016438,2]
[357684905,1744332650141,-2931.48,0.00016438,2]
[357684906,1744332650150,-1109.5,0.00016438,2]
[357684907,1744332650159,-1735.47,0.00016438,2]
[357684908,1744332650169,-500.0,0.00016438,2]
[357684909,1744332650179,-711.11,0.00016438,2]
[357684910,1744332650189,-500.0,0.00016438,2]
[357684911,1744332650199,-13734.21,0.00016438,2]
[357684912,1744332650208,-2323.29,0.00016438,2]
[357684913,1744332650218,-556.47700204,0.00016438,2]
[357684914,1744332650227,-507.1273786,0.00016438,2]
[357684915,1744332650237,-1042.58,0.00016438,2]
[357684916,1744332650248,-451.89919375,0.00016438,2]
[357684917,1744332650257,-502.93886783,0.00016438,2]
[357684918,1744332650267,-728.17,0.00016438,2]
[357684919,1744332650277,-500.0,0.00016438,2]
[357684920,1744332650287,-232.96341857,0.00016438,2]
[357684921,1744332650296,-518.611495,0.00016438,2]
[357684922,1744332650306,-500.0,0.00016438,2]
[357684923,1744332650315,-500.0,0.00016438,2]
[357684924,1744332650325,-500.0,0.00016438,2]
[357684925,1744332650334,-569.2,0.00016438,2]
[357684926,1744332650344,-500.0,0.00016438,2]
[357684927,1744332650353,-518.19919646,0.00016438,2]
[357684928,1744332650363,-4218.44,0.00016438,2]
[357684929,1744332650372,-848.49,0.00016438,2]
[357684930,1744332650382,-2639.23,0.00016438,2]
[357684931,1744332650391,-500.0,0.00016438,2]
[357684932,1744332650401,-500.0,0.00016438,2]
[357684933,1744332650410,-500.0,0.00016438,2]
[357684934,1744332650420,-500.0,0.00016438,2]
[357684935,1744332650429,-503.69758713,0.00016438,2]
[357684936,1744332650438,-2518.79,0.00016438,2]
[357684937,1744332650448,-500.0,0.00016438,2]
[357684938,1744332650457,-500.0,0.00016438,2]
[357684939,1744332650467,-500.0,0.00016438,2]
[357684940,1744332650477,-2840.99,0.00016438,2]
[357684941,1744332650486,-500.0,0.00016438,2]
[357684942,1744332650496,-630.78,0.00016438,2]
[357684943,1744332650505,-755.35,0.00016438,2]
[357684944,1744332650515,-500.0,0.00016438,2]
[357684945,1744332650525,-500.0,0.00016438,2]
[357684946,1744332650535,-204.74229318,0.00016438,2]
[357684947,1744332650546,-1220.83,0.00016438,2]
[357684948,1744332650555,-5035.72,0.00016438,2]
[357684949,1744332650565,-3916.52,0.00016438,2]
[357684950,1744332650575,-500.0,0.00016438,2]
[357684951,1744332650585,-2372.598302,0.00016438,2]
[357684952,1744332650595,-2372.598302,0.00016438,2]
[357684953,1744332650604,-2372.598302,0.00016438,2]
[357684954,1744332650614,-2372.598302,0.00016438,2]
[357684955,1744332650624,-500.0,0.00016438,2]
[357684956,1744332650634,-2372.598302,0.00016438,2]
[357684957,1744332650644,-2372.598302,0.00016438,2]
[357684958,1744332650657,-500.0,0.00016438,2]
[357684959,1744332650667,-500.0,0.00016438,2]
[357684960,1744332650676,-2372.598302,0.00016438,2]
[357684961,1744332650686,-500.0,0.00016438,2]
[357684962,1744332650697,-2372.598302,0.00016438,2]
[357684963,1744332650706,-2372.598302,0.00016438,2]
[357684964,1744332650715,-2372.598302,0.00016438,2]
[357684965,1744332650726,-2372.598302,0.00016438,2]
[357684966,1744332650736,-500.0,0.00016438,2]
[357684967,1744332650746,-2372.598302,0.00016438,2]
[357684968,1744332650756,-2372.598302,0.00016438,2]
[357684969,1744332650766,-508.34,0.00016438,2]
[357684970,1744332650775,-500.0,0.00016438,2]
[357684971,1744332650785,-2372.598302,0.00016438,2]
[357684972,1744332650795,-2372.598302,0.00016438,2]
[357684973,1744332650804,-2372.598302,0.00016438,2]
[357684974,1744332650813,-2372.598302,0.00016438,2]
[357684975,1744332650823,-1000.19,0.00016438,2]
[357684976,1744332650832,-884.76,0.00016438,2]
[357684977,1744332650842,-2372.598302,0.00016438,2]
[357684978,1744332650851,-2372.598302,0.00016438,2]
[357684979,1744332650861,-2372.59831063,0.00016438,2]
[357684980,1744332650871,-500.0,0.00016438,2]
[357684981,1744332650880,-500.0,0.00016438,2]
[357684982,1744332650889,-4175.53,0.00016438,2]
[357684983,1744332650899,-1347.73,0.00016438,2]
[357684984,1744332650909,-500.0,0.00016438,2]
[357684985,1744332650918,-2772.56,0.00016438,2]
[357684986,1744332650928,-500.0,0.00016438,2]
[357684987,1744332650937,-856.93,0.00016438,2]
[357684988,1744332650947,-792.4,0.00016438,2]
[357684989,1744332650958,-740.48,0.00016438,2]
[357684990,1744332650968,-500.0,0.00016438,2]
[357684991,1744332650978,-262.86064987,0.00016438,2]
[357684992,1744332650987,-500.0,0.00016438,2]
[357684993,1744332650998,-500.0,0.00016438,2]
[357684994,1744332651007,-500.0,0.00016438,2]
[357684995,1744332651017,-500.0,0.00016438,2]
[357684996,1744332651026,-500.0,0.00016438,2]
[357684997,1744332651036,-781.83,0.00016438,2]
[357684998,1744332651046,-500.0,0.00016438,2]
[357684999,1744332651056,-500.0,0.00016438,2]
[357685000,1744332651065,-500.0,0.00016438,2]
[357685001,1744332651076,-601.25,0.00016438,2]
[357685002,1744332651085,-9626.05,0.00016438,2]
[357685003,1744332651095,-1947.04,0.00016438,2]
[357685004,1744332651105,-966.14,0.00016438,2]
[357685005,1744332651115,-500.0,0.00016438,2]
[357685007,1744332651124,-4677.94,0.00016438,2]
[357685008,1744332651134,-500.0,0.00016438,2]
[357685009,1744332651144,-151.0,0.00016438,2]
[357685010,1744332651153,-502.786243,0.00016438,2]
[357685011,1744332651163,-151.0,0.00016438,2]
[357685012,1744332651173,-151.0,0.00016438,2]
[357685013,1744332651182,-151.0,0.00016438,2]
[357685014,1744332651193,-338.91817485,0.00016438,2]
[357685015,1744332651203,-500.0,0.00016438,2]
[357685016,1744332651212,-151.0,0.00016438,2]
[357685017,1744332651362,-500.0,0.00016438,2]
[357685018,1744332651372,-151.0,0.00016438,2]
[357685019,1744332651381,-296.440516,0.00016438,2]
[357685020,1744332651391,-500.0,0.00016438,2]
[357685021,1744332651400,-527.85,0.00016438,2]
[357685022,1744332651410,-554.48276918,0.00016438,2]
[357685023,1744332651420,-500.0,0.00016438,2]
[357685024,1744332651430,-500.0,0.00016438,2]
[357685025,1744332651439,-714.13,0.00016438,2]
[357685026,1744332651448,-151.0,0.00016438,2]
[357685027,1744332651458,-151.0,0.00016438,2]
[357685028,1744332651467,-151.0,0.00016438,2]
[357685029,1744332651477,-500.0,0.00016438,2]
[357685030,1744332651486,-151.0,0.00016438,2]
[357685031,1744332651496,-756.51,0.00016438,2]
[357685032,1744332651506,-151.0,0.00016438,2]
[357685033,1744332651515,-151.0,0.00016438,2]
[357685034,1744332651524,-275.274161,0.00016438,2]
[357685035,1744332651534,-500.0,0.00016438,2]
[357685036,1744332651543,-500.0,0.00016438,2]
[357685037,1744332651552,-516.20021316,0.00016438,2]
[357685038,1744332651562,-808.09,0.00016438,2]
[357685039,1744332651571,-6483.88,0.00016438,2]
[357685040,1744332651581,-6484.18,0.00016438,2]
[357685041,1744332651590,-500.0,0.00016438,2]
[357685042,1744332651600,-615.42,0.00016438,2]
[357685043,1744332651609,-505.05471142,0.00016438,2]
[357685044,1744332651619,-500.0,0.00016438,2]
[357685045,1744332651628,-1945.56,0.00016438,2]
[357685046,1744332651638,-524.93,0.00016438,2]
[357685047,1744332651651,-500.0,0.00016438,2]
[357685048,1744332651660,-585.82,0.00016438,2]
[357685049,1744332651669,-1064.33,0.00016438,2]
[357685050,1744332651679,-1433.89,0.00016438,2]
[357685051,1744332651690,-311.7502271,0.00016438,2]
[357685052,1744332651699,-500.0,0.00016438,2]
[357685053,1744332651708,-917.83,0.00016438,2]
[357685054,1744332651718,-500.0,0.00016438,2]
[357685055,1744332651729,-500.0,0.00016438,2]
[357685056,1744332651738,-176.49901247,0.00016438,2]
[357685057,1744332651748,-500.0,0.00016438,2]
[357685058,1744332651757,-296.49336089,0.00016438,2]
[357685059,1744332651766,-1100.79,0.00016438,2]
[357685060,1744332651775,-668.16,0.00016438,2]
[357685061,1744332651785,-500.0,0.00016438,2]
[357685062,1744332651794,-500.0,0.00016438,2]
[357685063,1744332651803,-500.0,0.00016438,2]
[357685064,1744332651813,-500.0,0.00016438,2]
[357685065,1744332651823,-540.97,0.00016438,2]
[357685066,1744332651832,-500.0,0.00016438,2]
[357685067,1744332651841,-500.0,0.00016438,2]
[357685068,1744332651850,-4679.43,0.00016438,2]
[357685069,1744332651859,-947.12,0.00016438,2]
[357685070,1744332651869,-500.0,0.00016438,2]
[357685071,1744332651879,-500.0,0.00016438,2]
[357685072,1744332651888,-500.0,0.00016438,2]
[357685073,1744332651898,-1008.44,0.00016438,2]
[357685074,1744332651907,-500.0,0.00016438,2]
[357685075,1744332651917,-500.0,0.00016438,2]
[357685076,1744332651926,-4183.52,0.00016438,2]
[357685077,1744332651935,-500.0,0.00016438,2]
[357685078,1744332651945,-1151.7,0.00016438,2]
[357685079,1744332651954,-759.31,0.00016438,2]
[357685080,1744332651963,-500.0,0.00016438,2]
[357685081,1744332651973,-500.0,0.00016438,2]
[357685082,1744332651983,-500.0,0.00016438,2]
[357685084,1744332651992,-626.77,0.00016438,2]
[357685086,1744332652001,-942.33,0.00016438,2]
[357685088,1744332652011,-2564.86,0.00016438,2]
[357685090,1744332652020,-500.0,0.00016438,2]
[357685092,1744332652030,-1699.0,0.00016438,2]
[357685094,1744332652039,-544.60483193,0.00016438,2]
[357685096,1744332652049,-731.4,0.00016438,2]
[357685098,1744332652059,-500.0,0.00016438,2]
[357685099,1744332652068,-500.0,0.00016438,2]
[357685100,1744332652078,-570.97,0.00016438,2]
[357685101,1744332652088,-754.83,0.00016438,2]
[357685102,1744332652097,-3260.9,0.00016438,2]
[357685103,1744332652107,-500.0,0.00016438,2]
[357685104,1744332652116,-500.9,0.00016438,2]
[357685105,1744332652126,-500.0,0.00016438,2]
[357685106,1744332652136,-500.0,0.00016438,2]
[357685107,1744332652146,-18184.96,0.00016438,2]
[357685108,1744332652156,-500.0,0.00016438,2]
[357685109,1744332652166,-500.0,0.00016438,2]
[357685110,1744332652175,-500.0,0.00016438,2]
[357685111,1744332652185,-151.0,0.00016438,2]
[357685112,1744332652194,-500.0,0.00016438,2]
[357685113,1744332652204,-151.0,0.00016438,2]
[357685114,1744332652213,-151.0,0.00016438,2]
[357685115,1744332652223,-500.0,0.00016438,2]
[357685116,1744332652232,-506.91,0.00016438,2]
[357685117,1744332652242,-500.0,0.00016438,2]
[357685118,1744332652252,-740.5,0.00016438,2]
[357685119,1744332652262,-500.0,0.00016438,2]
[357685120,1744332652272,-500.0,0.00016438,2]
[357685121,1744332652282,-500.0,0.00016438,2]
[357685122,1744332652291,-500.0,0.00016438,2]
[357685123,1744332652301,-500.0,0.00016438,2]
[357685124,1744332652310,-559.11,0.00016438,2]
[357685125,1744332652320,-500.0,0.00016438,2]
[357685126,1744332652329,-519.67553261,0.00016438,2]
[357685127,1744332652339,-1994.39,0.00016438,2]
[357685128,1744332652349,-500.0,0.00016438,2]
[357685129,1744332652359,-500.0,0.00016438,2]
[357685130,1744332652368,-500.0,0.00016438,2]
[357685131,1744332652378,-6436.24,0.00016438,2]
[357685132,1744332652387,-911.05,0.00016438,2]
[357685133,1744332652397,-1272.17,0.00016438,2]
[357685134,1744332652408,-1474.54,0.00016438,2]
[357685135,1744332652417,-500.0,0.00016438,2]
[357685136,1744332652427,-1574.76,0.00016438,2]
[357685137,1744332652437,-500.0,0.00016438,2]
[357685138,1744332652447,-341.1802591,0.00016438,2]
[357685139,1744332652456,-976.71,0.00016438,2]
[357685140,1744332652466,-650.21,0.00016438,2]
[357685141,1744332652475,-192.80020087,0.00016438,2]
[357685142,1744332652485,-500.0,0.00016438,2]
[357685143,1744332652494,-500.0,0.00016438,2]
[357685144,1744332652503,-500.0,0.00016438,2]
[357685145,1744332652513,-500.0,0.00016438,2]
[357685146,1744332652522,-3050.81,0.00016438,2]
[357685147,1744332652531,-2422.75,0.00016438,2]
[357685148,1744332652540,-518.99053242,0.00016438,2]
[357685149,1744332652549,-500.0,0.00016438,2]
[357685150,1744332652558,-500.0,0.00016438,2]
[357685151,1744332652568,-500.0,0.00016438,2]
[357685152,1744332652577,-618.62,0.00016438,2]
[357685153,1744332652586,-524.39,0.00016438,2]
[357685154,1744332652596,-5298.82,0.00016438,2]
[357685155,1744332652605,-527.61,0.00016438,2]
[357685156,1744332652614,-974.24,0.00016438,2]
[357685157,1744332652624,-500.0,0.00016438,2]
[357685158,1744332652634,-5033.505572,0.0001644,2]
[357685159,1744332652645,-500.0,0.00016472,2]
[357685160,1744332652656,-540.1171875,0.00016472,2]
[357685161,1744332652665,-240.61591793,0.00016473,2]
[357685162,1744332652675,-500.0,0.00016473,2]
[357685163,1744332652684,-164.5930202,0.00016473,2]
[357685164,1744332652695,-433.85418586,0.00016473,2]
[357685165,1744332652704,-500.0,0.00016473,2]
[357685166,1744332652713,-500.0,0.00016473,2]
[357685167,1744332652724,-500.66085394,0.00016473,2]
[357685168,1744332652734,-193.60636138,0.00016473,2]
[357685169,1744332652743,-501.77968287,0.00016473,2]
[357685170,1744332652752,-534.67216658,0.00016473,2]
[357685171,1744332652761,-243.26127268,0.00016473,2]
[357685172,1744332652770,-500.0,0.00016473,2]
[357685173,1744332652780,-500.0,0.00016473,2]
[357685174,1744332652789,-500.0,0.00016473,2]
[357685175,1744332652799,-500.0,0.00016473,2]
[357685176,1744332652809,-500.0,0.00016473,2]
[357685177,1744332652818,-500.0,0.00016473,2]
[357685178,1744332652828,-500.0,0.00016473,2]
[357685179,1744332652837,-500.0,0.00016473,2]
[357685180,1744332652847,-500.0,0.00016473,2]
[357685181,1744332652856,-500.0,0.00016473,2]
[357685182,1744332652865,-500.0,0.00016473,2]
[357685183,1744332652874,-500.0,0.00016473,2]
[357685184,1744332652884,-500.0,0.00016473,2]
[357685185,1744332652893,-506.99784116,0.00016473,2]
[357685186,1744332652902,-500.0,0.00016473,2]
[357685187,1744332652911,-500.0,0.00016473,2]